bitfinex/quotes_BTCUSD_20250206
["timestamp","ask_amount","ask_price","bid_price","bid_amount"]
[1738801240576,0.0001068,96790.0,96788.0,1.22598528]
[1738801240777,0.0001068,96790.0,96789.0,0.32306826]
[1738801241011,0.0001068,96790.0,96789.0,0.42557191]
[1738801241344,0.0001068,96790.0,96789.0,0.38510221]
[1738801241767,1.515e-05,96790.0,96789.0,0.38510221]
[1738801241991,1.515e-05,96790.0,96789.0,0.49022009]
[1738801242841,1.515e-05,96790.0,96789.0,0.45722009]
[1738801242957,1.515e-05,96790.0,96789.0,0.42562153]
[1738801243602,1.515e-05,96790.0,96789.0,0.27562153]
[1738801243758,1.515e-05,96790.0,96789.0,0.30722009]
[1738801244372,1.515e-05,96790.0,96789.0,0.49022009]
[1738801244628,1.515e-05,96790.0,96789.0,1.35242009]
[1738801245810,8.205e-05,96794.0,96793.0,0.314969]
[1738801246012,8.205e-05,96794.0,96793.0,0.65499258]
[1738801247833,8.205e-05,96794.0,96793.0,0.64499258]
[1738801248045,8.205e-05,96794.0,96793.0,0.9131763]
[1738801248408,8.205e-05,96794.0,96793.0,0.34037265]
[1738801248607,8.205e-05,96794.0,96793.0,0.25747265]
[1738801248945,8.205e-05,96794.0,96793.0,0.154969]
[1738801249189,8.205e-05,96794.0,96788.0,0.154976]
[1738801249437,8.205e-05,96794.0,96789.0,0.00103302]
[1738801249611,8.205e-05,96794.0,96782.0,0.00103305]
[1738801249843,0.00715509,96793.0,96791.0,0.154971]
[1738801250047,0.00715509,96793.0,96792.0,0.0361606]
[1738801250193,8.205e-05,96794.0,96791.0,0.154971]
[1738801250401,8.205e-05,96794.0,96789.0,0.00103306]
[1738801250577,0.00715547,96793.0,96777.0,0.206659]
[1738801250782,8.205e-05,96794.0,96777.0,0.206659]
[1738801250983,0.154975,96790.0,96780.0,0.37011161]
[1738801251183,0.154972,96792.0,96782.0,0.154987]
[1738801251533,0.00714016,96791.0,96783.0,0.00103313]
[1738801251749,0.00714016,96791.0,96789.0,0.154976]
[1738801251966,8.205e-05,96794.0,96780.0,0.21512261]
[1738801252182,8.205e-05,96794.0,96781.0,0.00103311]
[1738801252427,8.205e-05,96794.0,96785.0,0.206641]
[1738801252670,8.205e-05,96794.0,96793.0,0.234569]
[1738801252893,0.206552,96828.0,96793.0,0.18210365]
[1738801253123,0.154919,96825.0,96807.0,0.154947]
[1738801253593,0.154917,96826.0,96807.0,0.154947]
[1738801253825,0.154919,96825.0,96807.0,0.154947]
[1738801254236,0.206552,96828.0,96807.0,0.154947]
[1738801254772,0.154919,96825.0,96807.0,0.154947]
[1738801255214,0.00110858,96840.0,96807.0,0.48705065]
[1738801255368,0.00110858,96840.0,96807.0,0.62351481]
[1738801255560,0.00110858,96840.0,96807.0,0.64418031]
[1738801255788,0.00110858,96840.0,96807.0,0.59878031]
[1738801256039,0.00110858,96840.0,96807.0,0.16527975]
[1738801256040,0.154919,96825.0,96807.0,0.16527975]
[1738801256247,0.154911,96830.0,96807.0,0.154947]
[1738801256386,0.283145,96832.0,96807.0,0.154947]
[1738801256810,0.154917,96826.0,96807.0,0.154947]
[1738801257011,0.154919,96825.0,96807.0,0.154947]
[1738801257218,0.15492,96824.0,96807.0,0.154947]
[1738801257394,0.154922,96823.0,96807.0,0.154947]
[1738801257853,0.0766,96832.0,96807.0,0.154947]
[1738801258056,0.00110858,96840.0,96807.0,0.25848347]
[1738801258381,0.00110858,96840.0,96807.0,0.37098271]
[1738801258863,0.00110858,96840.0,96807.0,0.39164821]
[1738801259014,0.00110858,96840.0,96807.0,0.47213343]
[1738801259485,0.00110858,96840.0,96807.0,0.74574068]
[1738801259650,0.00110858,96840.0,96828.0,0.236813]
[1738801259856,0.00110858,96840.0,96828.0,0.37094871]
[1738801259857,0.00899905,96829.0,96828.0,0.37094871]
[1738801260660,0.00899905,96829.0,96828.0,0.38897746]
[1738801261013,0.00899905,96829.0,96828.0,0.461484]
[1738801261319,0.00899905,96829.0,96828.0,0.5489009]
[1738801261921,0.0070449,96857.0,96828.0,0.5489009]
[1738801261922,0.0070449,96857.0,96856.0,0.154869]
[1738801262084,0.00718444,96857.0,96856.0,0.40977265]
[1738801262283,0.00718444,96857.0,96856.0,0.5357894]
[1738801262448,0.00718444,96857.0,96856.0,0.6857894]
[1738801262643,0.00718444,96857.0,96856.0,0.6592022]
[1738801263182,0.00718444,96857.0,96856.0,0.6692022]
[1738801263386,0.00718444,96857.0,96856.0,0.6592022]
[1738801263800,0.00718444,96857.0,96856.0,0.6692022]
[1738801264399,0.00718444,96857.0,96856.0,0.67939591]
[1738801264609,0.00709282,96857.0,96856.0,0.67939591]
[1738801265822,0.00709282,96857.0,96856.0,1.22129591]
[1738801267029,0.00709282,96857.0,96856.0,1.24242696]
[1738801267934,0.154818,96888.0,96881.0,0.154828]
[1738801268137,0.154818,96888.0,96881.0,0.10250365]
[1738801268138,0.00013944,96888.0,96881.0,0.10250365]
[1738801268343,0.00013944,96888.0,96886.0,0.15482]
[1738801268344,0.00604634,96887.0,96886.0,0.15482]
[1738801268527,0.00013944,96888.0,96886.0,0.25835555]
[1738801268654,0.00013944,96888.0,96887.0,0.24925752]
[1738801268858,0.00013944,96888.0,96887.0,0.2482257]
[1738801269475,0.00013944,96888.0,96887.0,0.2936257]
[1738801269678,0.00013944,96888.0,96887.0,0.34533295]
[1738801269904,0.00013944,96888.0,96887.0,0.2936257]
[1738801270101,0.00013944,96888.0,96887.0,0.1696257]
[1738801270303,0.00013944,96888.0,96887.0,0.17065761]
[1738801270721,0.00013944,96888.0,96887.0,0.1696257]
[1738801271691,0.00013944,96888.0,96887.0,0.17065763]
[1738801271915,0.00013944,96888.0,96887.0,0.1696257]
[1738801272997,0.00013944,96888.0,96887.0,0.17065764]
[1738801273952,0.00013944,96888.0,96887.0,0.1696257]
[1738801274572,0.00024614,96888.0,96887.0,0.1696257]
[1738801275030,0.0074796,96888.0,96887.0,0.1696257]
[1738801275236,0.00024614,96888.0,96887.0,0.1696257]
[1738801275436,0.00024614,96888.0,96887.0,0.17065753]
[1738801275641,0.00024614,96888.0,96887.0,0.32065753]
[1738801275840,0.00024614,96888.0,96887.0,0.3426257]
[1738801276121,0.00024614,96888.0,96887.0,0.43167662]
[1738801276399,0.00024614,96888.0,96887.0,0.46315622]
[1738801277536,1e-08,96895.0,96894.0,0.304808]
[1738801277668,1e-08,96895.0,96894.0,0.51892977]
[1738801278091,0.154757,96926.0,96904.0,0.154792]
[1738801278319,0.154759,96925.0,96904.0,0.25832733]
[1738801278528,0.20733678,96930.0,96904.0,0.25729565]
[1738801278776,0.20733678,96930.0,96904.0,0.32430421]
[1738801278906,0.154765,96921.0,96904.0,0.32430421]
[1738801279108,0.206343,96926.0,96904.0,0.32430421]
[1738801279109,0.154762,96923.0,96904.0,0.32430421]
[1738801279350,0.206343,96926.0,96904.0,0.32430421]
[1738801279351,0.154764,96922.0,96904.0,0.32430421]
[1738801279690,0.00100178,96930.0,96904.0,0.32430421]
[1738801279825,0.154777,96914.0,96904.0,0.22180056]
[1738801280033,0.15478,96912.0,96904.0,0.22180056]
[1738801280233,0.154775,96915.0,96904.0,0.22180056]
[1738801280443,0.206363,96917.0,96904.0,0.22180056]
[1738801280646,0.154775,96915.0,96904.0,0.22180056]
[1738801280849,0.154776,96914.0,96904.0,0.22180056]
[1738801281253,0.154782,96911.0,96904.0,0.22180056]
[1738801281472,0.154794,96903.0,96895.0,0.21512261]
[1738801281626,0.154802,96898.0,96889.0,0.154815]
[1738801281832,0.206394,96902.0,96883.0,0.206433]
[1738801282048,0.154803,96898.0,96890.0,0.36993661]
[1738801282249,0.154803,96898.0,96891.0,0.04734722]
[1738801282250,0.00596203,96897.0,96891.0,0.04734722]
[1738801282493,0.00596203,96897.0,96896.0,0.154805]
[1738801282732,0.0001068,96905.0,96904.0,0.154792]
[1738801282967,0.0001068,96905.0,96896.0,0.10353543]
[1738801282968,0.0001068,96905.0,96901.0,0.154796]
[1738801283209,0.00595933,96904.0,96902.0,0.02583314]
[1738801283445,0.00595933,96904.0,96899.0,0.154799]
[1738801283682,0.00595933,96904.0,96900.0,0.154798]
[1738801283906,0.00595933,96904.0,96902.0,0.154794]
[1738801284131,0.0001068,96905.0,96900.0,0.206396]
[1738801284384,0.00596113,96904.0,96903.0,0.154793]
[1738801284611,0.0001068,96905.0,96903.0,0.154793]
[1738801284612,0.0001068,96905.0,96903.0,0.06700967]
[1738801284835,0.00596113,96904.0,96903.0,0.06700967]
[1738801285039,0.00596113,96904.0,96896.0,0.10250365]
[1738801285040,0.00596113,96904.0,96901.0,0.154796]
[1738801285276,0.00596113,96904.0,96902.0,0.154794]
[1738801285638,0.0001068,96905.0,96899.0,0.206399]
[1738801285832,0.0001068,96905.0,96895.0,0.21512261]
[1738801286037,0.0001068,96905.0,96897.0,0.154803]
[1738801286239,0.0001068,96905.0,96895.0,0.21512261]
[1738801286450,0.0001068,96905.0,96867.0,0.0454]
[1738801286451,0.154807,96895.0,96887.0,0.154819]
[1738801286672,0.206408,96896.0,96885.0,0.14308962]
[1738801286878,0.00596233,96894.0,96885.0,0.14308962]
[1738801287022,0.154817,96888.0,96887.0,0.00022428]
[1738801287446,0.16377395,96888.0,96887.0,0.00022428]
[1738801288444,0.2662776,96888.0,96887.0,0.00022428]
[1738801288845,0.3461776,96888.0,96887.0,0.00022428]
[1738801289247,0.3948776,96888.0,96887.0,0.00022428]
[1738801289447,0.4178776,96888.0,96887.0,0.00022428]
[1738801289651,0.4281954,96888.0,96887.0,0.00022428]
[1738801289852,0.01,96881.0,96843.0,0.08291659]
[1738801290099,0.154872,96854.0,96853.0,0.08291659]
[1738801290292,0.16376865,96854.0,96853.0,0.08291659]
[1738801290469,0.154888,96844.0,96843.0,0.08338155]
[1738801290693,0.16378126,96844.0,96843.0,0.00046496]
[1738801290871,0.20968126,96844.0,96843.0,0.00046496]
[1738801291073,0.39128491,96844.0,96843.0,0.00046496]
[1738801291434,0.41428491,96844.0,96843.0,0.00046496]
[1738801292159,0.42428491,96844.0,96843.0,0.00046496]
[1738801293155,0.74979572,96844.0,96843.0,0.00046496]
[1738801293337,0.26628491,96844.0,96843.0,0.00046496]
[1738801296527,0.29784491,96844.0,96843.0,0.00046496]
[1738801296730,0.44784491,96844.0,96843.0,0.00046496]
[1738801296933,0.78294491,96844.0,96843.0,0.00046496]
[1738801297055,0.77294491,96844.0,96843.0,0.00046496]
[1738801297482,0.78294491,96844.0,96843.0,0.00046496]
[1738801297649,0.77294491,96844.0,96843.0,0.00046496]
[1738801298305,0.78294491,96844.0,96843.0,0.00046496]
[1738801298664,0.79326686,96844.0,96843.0,0.00046496]
[1738801299469,0.79326686,96844.0,96843.0,0.00068924]
[1738801300913,0.324893,96841.0,96840.0,3.1e-07]
[1738801301136,0.304923,96822.0,96821.0,0.08291659]
[1738801301277,0.76552665,96822.0,96821.0,0.08338284]
[1738801301480,0.86456551,96822.0,96821.0,2.5e-07]
[1738801302545,0.88309815,96822.0,96821.0,2.5e-07]
[1738801302749,0.30496,96799.0,96790.0,0.00022428]
[1738801302979,0.43902365,96799.0,96798.0,0.08338293]
[1738801303130,0.44795498,96799.0,96798.0,0.00046634]
[1738801304056,0.44829898,96799.0,96798.0,0.00046634]
[1738801305260,0.41673898,96799.0,96798.0,0.00046634]
[1738801307145,0.26673898,96799.0,96798.0,0.00046634]
[1738801308214,0.28973898,96799.0,96798.0,0.00046634]
[1738801308640,0.43973898,96799.0,96798.0,0.00046634]
[1738801308922,0.90373898,96799.0,96798.0,3.4e-07]
[1738801310263,0.89373898,96799.0,96798.0,3.4e-07]
[1738801310483,0.90373898,96799.0,96798.0,3.4e-07]
[1738801311168,0.89373898,96799.0,96798.0,3.4e-07]
[1738801311418,0.90373898,96799.0,96798.0,3.4e-07]
[1738801312948,0.023,96787.0,96746.0,0.00022428]
[1738801313145,0.155033,96753.0,96752.0,0.08338449]
[1738801313559,0.16384009,96753.0,96752.0,0.0004679]
[1738801314868,0.00880709,96753.0,96752.0,0.0004679]
[1738801315301,0.155028,96757.0,96752.0,0.0213354]
[1738801315713,0.00878641,96756.0,96752.0,0.0004679]
[1738801316117,0.155024,96759.0,96752.0,0.0004679]
[1738801316329,0.00878741,96758.0,96752.0,0.0004679]
[1738801316491,0.155024,96760.0,96752.0,0.0004679]
[1738801316692,0.00878791,96759.0,96752.0,0.0004679]
[1738801316936,0.01,96796.0,96752.0,0.01732646]
[1738801317138,0.155026,96758.0,96752.0,0.0004679]
[1738801317360,0.00878691,96757.0,96752.0,0.0004679]
[1738801318053,0.155025,96759.0,96752.0,0.0004679]
[1738801318209,0.00878641,96756.0,96752.0,0.0004679]
[1738801318426,0.155025,96759.0,96752.0,0.0004679]
[1738801318625,0.0087859,96755.0,96752.0,0.0004679]
[1738801318806,0.155026,96758.0,96752.0,0.0004679]
[1738801319005,0.0087854,96754.0,96752.0,0.02261655]
[1738801319256,0.13146059,96799.0,96755.0,0.0472]
[1738801319426,0.08291659,96789.0,96777.0,0.154994]
[1738801319668,0.154991,96780.0,96778.0,0.0784]
[1738801319993,0.00881849,96779.0,96778.0,0.0784]
[1738801320536,0.154995,96777.0,96768.0,0.155009]
[1738801320763,0.00882477,96776.0,96772.0,0.155001]
[1738801321119,0.20665,96782.0,96761.0,0.0784]
[1738801321491,0.155018,96763.0,96761.0,0.0784]
[1738801321830,0.1113347,96781.0,96761.0,0.233421]
[1738801321831,0.0088316,96762.0,96761.0,0.233421]
[1738801322072,0.206663,96776.0,96761.0,0.0784]
[1738801322268,0.08326059,96799.0,96766.0,0.21473839]
[1738801322469,0.154991,96780.0,96772.0,0.155002]
[1738801322675,0.206648,96783.0,96769.0,0.206677]
[1738801322899,0.00883522,96779.0,96771.0,0.155004]
[1738801323051,0.00883472,96778.0,96771.0,0.155004]
[1738801323256,0.00883472,96778.0,96767.0,0.206682]
[1738801323532,0.15,96795.0,96769.0,0.155007]
[1738801323731,0.154994,96778.0,96770.0,0.0317851]
[1738801324075,0.154994,96778.0,96770.0,0.1867911]
[1738801324251,0.00883837,96777.0,96772.0,0.155001]
[1738801324455,0.00883837,96777.0,96773.0,0.0317851]
[1738801324631,0.154991,96780.0,96774.0,0.0317851]
[1738801324954,0.16383137,96779.0,96775.0,0.0317851]
[1738801325184,0.00883937,96779.0,96776.0,0.0317851]
[1738801325389,0.3251,96813.0,96769.0,0.00022449]
[1738801325390,0.000344,96799.0,96798.0,0.154961]
[1738801325592,0.000344,96799.0,96798.0,0.0317851]
[1738801325766,0.000344,96799.0,96798.0,0.03281811]
[1738801326074,0.000344,96799.0,96798.0,0.0317851]
[1738801326277,0.000344,96799.0,96797.0,0.0317851]
[1738801326409,0.000344,96799.0,96798.0,0.0317851]
[1738801326609,0.000344,96799.0,96798.0,0.032253]
[1738801327009,0.000344,96799.0,96798.0,0.1003291]
[1738801328165,0.000344,96799.0,96798.0,0.10136207]
[1738801328793,0.000344,96799.0,96798.0,0.25096572]
[1738801329018,0.000344,96799.0,96798.0,0.33023275]
[1738801332092,0.000344,96799.0,96798.0,0.50323275]
[1738801332428,0.0001069,96821.0,96820.0,0.154926]
[1738801332627,0.0001069,96821.0,96820.0,0.42980735]
[1738801333699,0.0001069,96821.0,96820.0,0.3273037]
[1738801335621,0.0001069,96821.0,96820.0,0.42980735]
[1738801340422,0.154885,96846.0,96839.0,0.154895]
[1738801340822,0.00747736,96845.0,96839.0,0.154895]
[1738801341039,0.16236436,96845.0,96840.0,0.0154895]
[1738801341646,0.16236436,96845.0,96840.0,0.0159574]
[1738801342017,0.00747736,96845.0,96840.0,0.0159574]
[1738801342222,0.00747736,96845.0,96844.0,0.154888]
[1738801342439,0.41295,96864.0,96841.0,0.20755456]
[1738801342636,0.206509,96848.0,96843.0,0.0807]
[1738801342882,0.206467,96868.0,96848.0,0.154881]
[1738801343106,0.00752283,96847.0,96846.0,0.154885]
[1738801343338,0.00752283,96847.0,96845.0,0.154886]
[1738801343477,0.154876,96852.0,96845.0,0.154886]
[1738801343682,0.00752283,96847.0,96845.0,0.154886]
[1738801343894,0.154872,96855.0,96843.0,0.0807]
[1738801344094,0.15,96866.0,96846.0,0.154884]
[1738801344295,0.154874,96853.0,96844.0,0.206517]
[1738801344500,0.206446,96878.0,96866.0,0.154852]
[1738801344501,0.206455,96874.0,96866.0,0.154852]
[1738801344727,0.154845,96872.0,96864.0,0.154855]
[1738801344932,0.154822,96885.0,96867.0,0.154851]
[1738801345130,0.10250365,96884.0,96866.0,0.20647]
[1738801345289,0.10250365,96884.0,96864.0,0.154855]
[1738801345484,0.154845,96871.0,96862.0,0.154858]
[1738801345698,0.206457,96873.0,96862.0,0.154858]
[1738801345898,0.154849,96869.0,96862.0,0.154858]
[1738801346120,0.154865,96859.0,96851.0,0.154876]
[1738801346330,0.10250365,96884.0,96851.0,0.206502]
[1738801346533,0.15486,96862.0,96855.0,0.15487]
[1738801346743,0.10250365,96884.0,96850.0,0.21473839]
[1738801346952,0.01033048,96887.0,96860.0,0.21473839]
[1738801347154,0.154833,96879.0,96870.0,0.36958339]
[1738801347378,0.10250365,96886.0,96870.0,0.36958339]
[1738801347379,0.206434,96883.0,96871.0,0.06524524]
[1738801347591,0.20643,96885.0,96871.0,0.06524524]
[1738801347798,0.154822,96886.0,96872.0,0.00103225]
[1738801347999,0.154831,96880.0,96870.0,0.21473839]
[1738801348405,0.0001068,96888.0,96870.0,0.21473839]
[1738801348605,0.154832,96879.0,96870.0,0.37005229]
[1738801349000,0.2065479,96880.0,96870.0,0.21520629]
[1738801349198,0.154833,96879.0,96870.0,0.28049872]
[1738801349412,0.16262453,96879.0,96870.0,0.28049872]
[1738801349851,0.16262453,96879.0,96870.0,0.43534472]
[1738801350670,0.00960553,96879.0,96870.0,0.06576033]
[1738801350871,0.00960553,96879.0,96873.0,0.15484]
[1738801351072,0.001814,96879.0,96873.0,0.15484]
[1738801351274,0.00779102,96878.0,96874.0,0.154838]
[1738801351491,0.00779102,96878.0,96877.0,0.154835]
[1738801351697,0.001814,96878.0,96877.0,0.154835]
[1738801351976,0.001814,96878.0,96877.0,0.22683626]
[1738801352149,0.001814,96878.0,96875.0,0.154838]
[1738801352782,0.001814,96878.0,96866.0,0.29337579]
[1738801352934,0.001814,96878.0,96873.0,0.15484]
[1738801353138,0.00779052,96877.0,96874.0,0.154839]
[1738801353340,0.001814,96878.0,96875.0,0.154837]
[1738801353809,0.001814,96878.0,96871.0,0.20646]
[1738801354016,0.001814,96878.0,96870.0,0.0004679]
[1738801354330,0.001814,96878.0,96870.0,0.00150006]
[1738801354510,0.001814,96878.0,96870.0,0.0004679]
[1738801354726,0.001814,96878.0,96876.0,0.154836]
[1738801355127,0.001814,96878.0,96877.0,0.03617619]
[1738801355327,0.001814,96878.0,96876.0,0.154836]
[1738801355869,0.001814,96878.0,96877.0,0.00103215]
[1738801357747,0.001814,96878.0,96876.0,0.154836]
[1738801359184,0.001814,96878.0,96870.0,0.0109121]
[1738801359185,0.001814,96878.0,96871.0,0.154845]
[1738801359581,0.00783147,96877.0,96872.0,0.154843]
[1738801359781,0.00964547,96877.0,96872.0,0.154843]
[1738801359941,0.00964547,96877.0,96870.0,0.0004679]
[1738801360142,0.001814,96877.0,96875.0,0.154838]
[1738801360671,0.001814,96877.0,96870.0,0.0004679]
[1738801360870,0.001814,96877.0,96873.0,0.15484]
[1738801361075,0.00791749,96876.0,96873.0,0.15484]
[1738801361310,0.00791749,96876.0,96871.0,0.04264613]
[1738801361615,0.00791749,96876.0,96874.0,0.15484]
[1738801361811,0.00973149,96876.0,96874.0,0.15484]
[1738801361974,0.00973149,96876.0,96874.0,0.23129324]
[1738801362374,0.001814,96876.0,96875.0,0.03174651]
[1738801362599,0.001814,96876.0,96875.0,0.03277867]
[1738801362797,0.001814,96876.0,96875.0,0.03174651]
[1738801365847,0.001814,96876.0,96875.0,0.18658451]
[1738801366054,0.001814,96876.0,96875.0,0.26853871]
[1738801366255,0.0001069,96880.0,96879.0,0.154832]
[1738801366462,0.0001069,96880.0,96879.0,0.29011417]
[1738801366757,0.0001069,96880.0,96879.0,0.28908216]
[1738801369561,0.0001069,96880.0,96879.0,0.18657851]
[1738801369737,0.0001069,96880.0,96879.0,0.27785121]
[1738801370711,0.0001069,96880.0,96879.0,0.03174651]
[1738801370914,0.154843,96872.0,96871.0,0.03174651]
[1738801371118,0.154843,96872.0,96859.0,0.154863]
[1738801371342,0.154843,96872.0,96857.0,0.154866]
[1738801371343,0.16266436,96872.0,96857.0,0.154866]
[1738801371543,0.16266436,96872.0,96860.0,0.14312136]
[1738801371923,0.16350226,96872.0,96860.0,0.14312136]
[1738801372254,0.26600591,96872.0,96852.0,0.23779059]
[1738801372884,0.10250365,96871.0,96852.0,0.08291659]
[1738801373175,0.16350226,96872.0,96860.0,0.14312136]
[1738801373410,0.00779373,96871.0,96860.0,0.14312136]
[1738801373595,0.00779373,96871.0,96852.0,0.08291659]
[1738801374000,0.00863163,96871.0,96852.0,0.08291659]
[1738801374344,0.00863163,96871.0,96870.0,0.00069218]
[1738801375628,0.00863163,96871.0,96870.0,0.03254847]
[1738801376124,0.0008379,96871.0,96870.0,0.00069218]
[1738801376340,0.0008379,96871.0,96870.0,0.03255916]
[1738801376563,0.00862802,96871.0,96870.0,0.00069218]
[1738801377292,0.0008379,96871.0,96870.0,0.03255774]
[1738801377661,0.0008379,96871.0,96870.0,0.10017221]
[1738801378470,0.0008379,96871.0,96870.0,0.10120434]
[1738801379286,0.0008379,96871.0,96870.0,0.10017221]
[1738801379487,0.0008379,96871.0,96870.0,0.26129255]
[1738801379688,0.0008379,96871.0,96870.0,0.26026042]
[1738801380174,0.0008379,96871.0,96870.0,0.25017221]
[1738801380668,0.0008379,96871.0,96870.0,0.18255774]
[1738801381180,0.0008379,96871.0,96870.0,0.03255774]
[1738801382077,0.00872638,96871.0,96870.0,0.00069218]
[1738801383444,0.02746361,96871.0,96870.0,0.00069218]
[1738801384428,0.12996726,96871.0,96870.0,0.00069218]
[1738801388046,0.19200726,96871.0,96870.0,0.00069218]
[1738801388268,0.12996726,96871.0,96870.0,0.00069218]
[1738801388845,0.15296726,96871.0,96870.0,0.00069218]
[1738801390261,0.18292167,96871.0,96870.0,0.00069218]
[1738801392373,0.33776667,96871.0,96870.0,0.00069218]
[1738801392908,0.30781226,96871.0,96870.0,0.00069218]
[1738801393076,0.98595226,96871.0,96870.0,0.00069218]
[1738801393258,0.98595226,96871.0,96846.0,0.08291659]
[1738801393259,0.01,96862.0,96846.0,0.08291659]
[1738801393434,0.458883,96847.0,96846.0,0.08291659]
[1738801393645,0.56138665,96847.0,96846.0,0.08291659]
[1738801393849,0.154905,96833.0,96811.0,0.02093733]
[1738801394108,0.25740865,96833.0,96811.0,0.02093733]
[1738801394307,0.206545,96831.0,96811.0,0.02093733]
[1738801394477,0.20656,96824.0,96815.0,0.154934]
[1738801394681,0.154925,96821.0,96814.0,0.23785259]
[1738801394883,0.154931,96817.0,96811.0,0.02093733]
[1738801395140,0.00819298,96820.0,96811.0,0.02093733]
[1738801395279,0.00819097,96816.0,96812.0,0.20111305]
[1738801395498,0.0008379,96817.0,96812.0,0.20111305]
[1738801395689,0.00819047,96815.0,96812.0,0.20111305]
[1738801395901,0.00819097,96816.0,96812.0,0.154939]
[1738801396097,0.00818846,96814.0,96810.0,0.22362136]
[1738801396365,0.0008379,96816.0,96804.0,0.14312136]
[1738801396566,0.0008379,96816.0,96812.0,0.154938]
[1738801396740,0.0008379,96816.0,96815.0,0.154934]
[1738801397547,0.0008379,96816.0,96801.0,0.0804]
[1738801397754,0.0008379,96816.0,96801.0,0.235356]
[1738801398273,0.154941,96811.0,96804.0,0.15367494]
[1738801398613,0.00817224,96810.0,96804.0,0.15367494]
[1738801398839,0.00817224,96810.0,96799.0,0.00022449]
[1738801399092,0.154957,96801.0,96799.0,0.00022449]
[1738801399469,0.10250365,96809.0,96799.0,0.00022449]
[1738801399470,0.00816695,96800.0,96799.0,0.00022449]
[1738801399935,0.154949,96806.0,96799.0,0.00022449]
[1738801400109,0.154952,96804.0,96799.0,0.00022449]
[1738801400488,0.154958,96800.0,96799.0,0.00022449]
[1738801400692,0.16311982,96803.0,96799.0,0.00022449]
[1738801400895,0.00816683,96800.0,96799.0,0.15518449]
[1738801401113,0.00046528,96805.0,96802.0,0.154954]
[1738801401318,0.00130318,96805.0,96802.0,0.154954]
[1738801401556,0.00130318,96805.0,96800.0,0.206611]
[1738801401708,0.00816482,96804.0,96803.0,0.154953]
[1738801401909,0.00816482,96804.0,96801.0,0.154956]
[1738801402255,0.00900272,96804.0,96801.0,0.154956]
[1738801402657,0.0008379,96804.0,96799.0,0.00022449]
[1738801402858,0.00736432,96803.0,96802.0,0.154954]
[1738801403245,0.0008379,96803.0,96802.0,0.154954]
[1738801403866,0.00820222,96803.0,96802.0,0.154954]
[1738801404043,0.0008379,96803.0,96802.0,0.154954]
[1738801404570,0.0008379,96803.0,96801.0,0.154956]
[1738801404746,0.0008379,96803.0,96802.0,0.03719088]
[1738801404928,0.0008379,96803.0,96801.0,0.154956]
[1738801405561,0.0008379,96803.0,96799.0,0.00022449]
[1738801405730,0.0008379,96803.0,96799.0,0.15518349]
[1738801406114,0.0008379,96803.0,96801.0,0.154956]
[1738801406755,0.0008379,96803.0,96802.0,0.00103299]
[1738801406963,0.0008379,96803.0,96802.0,0.07965077]
[1738801408307,0.0008379,96803.0,96802.0,0.07861778]
[1738801408835,0.0008379,96803.0,96801.0,0.154956]
[1738801409064,0.0008379,96803.0,96799.0,0.00022449]
[1738801409682,0.0008379,96803.0,96799.0,0.15518449]
[1738801409837,0.0008379,96803.0,96799.0,0.00022449]
[1738801410473,0.0008379,96803.0,96800.0,0.154958]
[1738801410725,0.0073229,96802.0,96800.0,0.154958]
[1738801410930,0.0073229,96802.0,96801.0,0.03722707]
[1738801411368,0.0081608,96802.0,96801.0,0.03722707]
[1738801411536,0.0008379,96802.0,96801.0,0.03722707]
[1738801411735,0.0008379,96802.0,96799.0,0.00022449]
[1738801412838,0.0073209,96801.0,96799.0,0.00022449]
[1738801413043,0.0008379,96802.0,96799.0,0.00022449]
[1738801413409,0.00732083,96801.0,96799.0,0.00022449]
[1738801414254,0.154958,96800.0,96799.0,0.00022449]
[1738801414452,0.1557959,96800.0,96799.0,0.00022449]
[1738801414720,0.16313101,96800.0,96799.0,0.00022449]
[1738801419350,0.26563466,96800.0,96799.0,0.00022449]
[1738801420663,0.28435304,96800.0,96799.0,0.00022449]
[1738801423504,0.38855304,96800.0,96799.0,0.00022449]
[1738801423706,0.64729304,96800.0,96799.0,0.00022449]
[1738801423985,0.68729482,96800.0,96799.0,0.00022449]
[1738801424204,0.69729482,96800.0,96799.0,0.00022449]
[1738801425257,1.02239482,96800.0,96799.0,0.00022449]
[1738801425484,0.231092,96779.0,96778.0,0.00022449]
[1738801425683,0.56365565,96779.0,96778.0,0.00022449]
[1738801425883,0.57087927,96779.0,96778.0,0.00022449]
[1738801426450,0.56231927,96779.0,96778.0,0.00022449]
[1738801426659,0.96801927,96779.0,96778.0,0.00022449]
[1738801426863,0.37704,96774.0,96773.0,0.00022449]
[1738801427012,0.50254365,96774.0,96773.0,0.00022449]
[1738801427254,0.155038,96750.0,96749.0,0.00022428]
[1738801427455,0.94958165,96750.0,96749.0,0.00022428]
[1738801427660,0.95675336,96750.0,96749.0,0.00022428]
[1738801428032,0.90558547,96750.0,96749.0,0.00022428]
[1738801428248,0.338043,96747.0,96743.0,0.00022407]
[1738801428445,0.44772679,96747.0,96743.0,0.00022407]
[1738801429425,0.43772679,96747.0,96743.0,0.00022407]
[1738801429647,0.44772679,96747.0,96743.0,0.00022407]
[1738801429871,0.43772679,96747.0,96743.0,0.00022407]
[1738801430074,0.44628679,96747.0,96743.0,0.00022407]
[1738801430289,0.43772679,96747.0,96743.0,0.00022407]
[1738801430515,0.44628679,96747.0,96743.0,0.00022407]
[1738801430950,0.49500695,96747.0,96743.0,0.00022407]
[1738801431837,0.34500695,96747.0,96743.0,0.00022407]
[1738801432239,0.31500517,96747.0,96743.0,0.00022407]
[1738801433217,0.29200517,96747.0,96743.0,0.00022407]
[1738801433878,0.28344517,96747.0,96743.0,0.00022407]
[1738801434179,0.29200517,96747.0,96743.0,0.00022407]
[1738801434542,0.28344517,96747.0,96743.0,0.00022407]
[1738801434744,0.29200517,96747.0,96743.0,0.00022407]
[1738801434947,0.27328679,96747.0,96743.0,0.00022407]
[1738801438095,0.26472679,96747.0,96743.0,0.00022407]
[1738801439181,0.00718014,96747.0,96743.0,0.00022407]
[1738801439627,0.000465,96750.0,96743.0,0.00022407]
[1738801439840,0.00663845,96747.0,96743.0,0.00022407]
[1738801440064,0.155043,96748.0,96743.0,0.00022407]
[1738801440273,0.10914462,96747.0,96743.0,0.00022407]
[1738801440479,0.13214462,96747.0,96743.0,0.00022407]
[1738801442199,0.10914462,96747.0,96743.0,0.00022407]
[1738801442411,0.00664097,96747.0,96743.0,0.00022407]
[1738801442855,0.10914462,96747.0,96743.0,0.00022407]
[1738801443482,0.13214462,96747.0,96743.0,0.00022407]
[1738801444125,0.45724462,96747.0,96743.0,0.00022407]
[1738801445071,0.45284334,96747.0,96743.0,0.00022407]
[1738801447799,0.47584334,96747.0,96743.0,0.00022407]